bitfinex/quotes_SOLUSD_20250216
["timestamp","ask_amount","ask_price","bid_price","bid_amount"]
[1739747691582,0.0001,188.64,188.58,9.7323272]
[1739747692661,0.0001,188.64,188.58,15.0349272]
[1739747692886,0.0001,188.64,188.57,0.063]
[1739747693582,0.0001,188.64,188.58,9.7323272]
[1739747693782,0.0001,188.64,188.57,0.063]
[1739747694773,0.0001,188.64,188.57,81.563]
[1739747695903,0.0001,188.64,188.6,9.7323272]
[1739747696203,0.0001,188.64,188.57,91.2953272]
[1739747696884,0.0001,188.64,188.57,96.5983272]
[1739747697215,0.0001,188.64,188.59,9.7323272]
[1739747698203,0.0001,188.64,188.6,5.3022]
[1739747700095,0.0001,188.64,188.6,86.8022]
[1739747700304,0.0001,188.64,188.6,81.5]
[1739747703675,0.0001,188.64,188.57,86.866]
[1739747704294,0.0001,188.64,188.57,81.563]
[1739747704475,0.0001,188.64,188.57,0.063]
[1739747704671,13.41184853,188.62,188.57,0.063]
[1739747704985,8.2221,188.63,188.57,0.063]
[1739747705211,5.3016,188.62,188.57,0.063]
[1739747707034,13.41184853,188.61,188.57,0.063]
[1739747707535,5.3022,188.6,188.57,0.063]
[1739747708230,5.3016,188.62,188.57,0.063]
[1739747708439,8.2221,188.63,188.57,0.063]
[1739747708638,8.2221,188.63,188.57,9.7953272]
[1739747708837,1.5817,188.63,188.59,9.7323272]
[1739747709010,0.0001,188.64,188.59,9.7323272]
[1739747709430,0.0001,188.64,188.6,15.0345272]
[1739747709645,0.0001,188.64,188.59,15.0347272]
[1739747711114,0.0001,188.64,188.61,9.7323272]
[1739747711535,0.0001,188.64,188.6,9.7323272]
[1739747712228,0.0001,188.64,188.58,19.35469347]
[1739747712406,0.0001,188.64,188.58,5.3027]
[1739747712607,0.0001,188.64,188.59,20.0]
[1739747712913,0.0001,188.64,188.57,0.063]
[1739747713407,0.0001,188.64,188.59,0.063]
[1739747714929,20.0,188.63,188.59,0.063]
[1739747715133,5.3016,188.62,188.59,0.063]
[1739747715649,1.5491,188.61,188.59,0.063]
[1739747716825,25.3022,188.6,188.59,0.063]
[1739747718755,5.3022,188.6,188.59,0.063]
[1739747719050,1.5491,188.61,188.59,0.063]
[1739747719414,5.3012,188.64,188.59,0.063]
[1739747722447,13.1107,188.6,188.59,0.063]
[1739747725558,5.3016,188.62,188.59,0.063]
[1739747725788,6.8457,188.64,188.59,0.063]
[1739747732058,20.0984,188.64,188.59,0.063]
[1739747732243,13.41184853,188.63,188.59,0.063]
[1739747733763,5.3016,188.62,188.59,0.063]
[1739747735777,5.3013,188.63,188.59,0.063]
[1739747736070,31.96654853,188.63,188.59,0.063]
[1739747736268,13.41184853,188.62,188.59,0.063]
[1739747738050,5.3016,188.62,188.59,0.063]
[1739747738868,20.0,188.6,188.59,0.063]
[1739747739881,25.3022,188.6,188.59,0.063]
[1739747747688,25.3022,188.6,188.57,0.063]
[1739747747689,38.71404853,188.6,188.57,0.063]
[1739747749262,13.41184853,188.59,188.5,1.0]
[1739747749462,13.41184853,188.57,188.5,1.0]
[1739747749660,15.95714853,188.57,188.5,1.0]
[1739747749871,13.41184853,188.51,188.5,1.0]
[1739747750260,20.0,188.55,188.5,1.0]
[1739747750458,4.24,188.51,188.5,1.0]
[1739747751700,9.5447,188.51,188.5,1.0]
[1739747751989,5.3047,188.51,188.5,1.0]
[1739747752494,5.3044,188.52,188.5,1.0]
[1739747759608,13.2596,188.55,188.5,1.0]
[1739747759774,4.24,188.54,188.5,1.0]
[1739747759976,5.3033,188.56,188.5,1.0]
[1739747760807,13.41184853,188.55,188.5,1.0]
[1739747761710,18.5636,188.54,188.5,1.0]
[1739747763084,5.3044,188.52,188.5,1.0]
[1739747764703,13.41184853,188.51,188.5,1.0]
[1739747765682,8.0227,188.5,188.45,0.03]
[1739747765887,13.41184853,188.49,188.45,0.03]
[1739747766607,33.41184853,188.46,188.45,0.03]
[1739747766789,5.3064,188.45,188.43,0.03]
[1739747767108,13.41184853,188.44,188.41,0.063]
[1739747769112,5.307,188.43,188.41,0.063]
[1739747770915,18.71824853,188.45,188.41,0.063]
[1739747774014,31.98434853,188.45,188.41,0.063]
[1739747776501,20.0,188.42,188.41,0.063]
[1739747777414,33.41184853,188.42,188.4,0.063]
[1739747777595,20.0,188.41,188.4,0.063]
[1739747779415,25.3075,188.41,188.4,0.063]
[1739747779713,13.2661,188.45,188.4,0.063]
[1739747779895,5.3058,188.47,188.4,0.063]
[1739747781123,5.3044,188.52,188.4,16.0665403]
[1739747781323,5.3044,188.52,188.41,20.51506951]
[1739747781620,20.0,188.48,188.41,5.3075]
[1739747782124,20.0,188.48,188.4,0.063]
[1739747783017,20.063,188.48,188.4,0.063]
[1739747783218,18.5715,188.46,188.4,0.063]
[1739747783626,13.41184853,188.45,188.4,0.063]
[1739747784131,14.98834853,188.45,188.4,0.063]
[1739747784318,20.0,188.42,188.4,0.063]
[1739747784734,20.0,188.39,188.38,0.063]
[1739747785229,18.5745,188.43,188.38,0.063]
[1739747785428,20.0,188.4,188.38,0.063]
[1739747785616,18.5745,188.43,188.38,0.063]
[1739747786205,13.41184853,188.42,188.38,0.063]
[1739747787106,20.0,188.39,188.38,0.063]
[1739747787310,38.71994853,188.39,188.38,0.0001]
[1739747787510,51.99024853,188.39,188.32,0.063]
[1739747788038,1.506,188.37,188.32,0.063]
[1739747788236,13.41184853,188.34,188.32,0.063]
[1739747788434,20.0,188.33,188.32,0.063]
[1739747789418,25.3098,188.33,188.32,0.063]
[1739747790238,38.72164853,188.33,188.32,0.063]
[1739747795543,20.0,188.33,188.32,0.063]
[1739747796046,5.3089,188.36,188.32,0.063]
[1739747796729,5.3087,188.37,188.32,0.063]
[1739747796930,5.3714,188.38,188.32,0.063]
[1739747797237,0.063,188.38,188.32,0.063]
[1739747797444,5.3714,188.38,188.32,0.063]
[1739747797947,0.063,188.38,188.32,0.063]
[1739747798328,5.3716,188.38,188.32,0.063]
[1739747798731,18.78344853,188.38,188.32,0.063]
[1739747799939,5.3089,188.36,188.32,0.063]
[1739747800657,18.5813,188.36,188.32,0.063]
[1739747801931,5.3087,188.37,188.32,0.063]
[1739747802536,13.41184853,188.36,188.32,0.063]
[1739747804363,13.2717,188.37,188.32,0.063]
[1739747804660,5.3089,188.36,188.32,0.063]
[1739747804851,13.41184853,188.35,188.32,0.063]
[1739747805870,5.3089,188.36,188.32,0.063]
[1739747806661,20.0,188.37,188.32,0.063]
[1739747808476,5.3089,188.36,188.32,0.063]
[1739747809661,31.99314853,188.36,188.32,0.063]
[1739747810276,18.5813,188.36,188.32,0.063]
[1739747814457,13.41184853,188.35,188.32,0.063]
[1739747815075,18.5813,188.36,188.32,0.063]
[1739747815278,5.3089,188.36,188.32,0.063]
[1739747818379,13.41184853,188.35,188.32,0.063]
[1739747819381,2.0,188.29,188.26,0.03]
[1739747819564,13.41184853,188.24,188.22,0.03]
[1739747819891,13.41184853,188.22,188.13,0.03]
[1739747821066,20.0,188.19,188.13,0.03]
[1739747821265,20.0,188.15,188.13,0.03]
[1739747821495,20.0,188.14,188.13,0.03]
[1739747821675,33.41184853,188.14,188.13,0.03]
[1739747821862,38.72694853,188.14,188.13,0.03]
[1739747822060,33.41184853,188.14,188.13,0.03]
[1739747822468,5.3143,188.18,188.13,0.03]
[1739747822688,13.41184853,188.17,188.13,0.03]
[1739747822964,1.6137,188.19,188.13,0.03]
[1739747823186,13.41184853,188.2,188.13,0.03]
[1739747823388,7.51537499,188.2,188.13,0.03]
[1739747824091,6.9265,188.23,188.13,0.03]
[1739747824274,1.6137,188.23,188.13,0.03]
[1739747825007,6.9263,188.23,188.13,0.03]
[1739747825502,13.41184853,188.22,188.13,0.03]
[1739747826177,6.4022,188.26,188.13,0.03]
[1739747826494,9.94044945,188.28,188.18,15.27336925]
[1739747826670,8.32674945,188.28,188.19,15.27336925]
[1739747826991,8.32674945,188.28,188.19,81.5]
[1739747828161,8.32674945,188.28,188.2,5.3134]
[1739747828878,11.7126,188.31,188.2,5.3134]
[1739747829083,13.41184853,188.32,188.21,15.27336925]
[1739747829273,13.41184853,188.32,188.22,15.27336925]
[1739747830166,25.3098,188.33,188.23,5.3126]
[1739747831389,20.0,188.33,188.23,20.58596925]
[1739747832105,5.3095,188.35,188.26,6.1558]
[1739747832398,5.3087,188.37,188.26,21.42916925]
[1739747832585,5.3087,188.37,188.26,6.1558]
[1739747833176,5.3087,188.37,188.26,21.42916925]
[1739747833371,8.38974945,188.38,188.27,20.58486925]
[1739747833568,8.38974945,188.38,188.29,15.27336925]
[1739747833970,8.38974945,188.38,188.32,15.27336925]
[1739747834189,8.38974945,188.38,188.35,15.27336925]
[1739747834595,8.38974945,188.38,188.34,15.27336925]
[1739747834984,8.38974945,188.38,188.35,15.27336925]
[1739747835297,0.063,188.38,188.37,5.3087]
[1739747835503,0.063,188.38,188.37,20.0]
[1739747835999,0.063,188.38,188.34,5.3095]
[1739747836198,0.063,188.38,188.33,15.27336925]
[1739747836401,5.3715,188.38,188.29,15.27336925]
[1739747836601,5.3715,188.38,188.28,15.27336925]
[1739747836976,5.3715,188.38,188.27,20.58486925]
[1739747837177,0.063,188.38,188.3,20.0]
[1739747837377,0.063,188.38,188.27,15.27336925]
[1739747838207,0.063,188.38,188.29,20.0]
[1739747839506,5.3714,188.38,188.29,20.0]
[1739747839908,5.3714,188.38,188.29,40.58426925]
[1739747840409,5.3714,188.38,188.3,15.27336925]
[1739747840600,5.3714,188.38,188.29,116.77336925]
[1739747840786,5.3714,188.38,188.29,101.5]
[1739747841108,25.0864,188.38,188.29,81.5]
[1739747841897,13.41184853,188.37,188.29,81.5]
[1739747842093,1.6246,188.36,188.29,81.5]
[1739747842405,13.41184853,188.35,188.29,81.5]
[1739747842716,13.41184853,188.35,188.23,81.5]
[1739747843582,18.5833,188.34,188.23,96.77336925]
[1739747843805,18.5833,188.34,188.23,102.08586925]
[1739747844292,18.5833,188.34,188.23,96.77336925]
[1739747844487,13.41184853,188.33,188.21,6.1558]
[1739747845105,13.41184853,188.33,188.21,11.4689]
[1739747845412,10.95134945,188.36,188.2,81.53]
[1739747845413,33.41184853,188.32,188.2,81.53]
[1739747845885,33.41184853,188.32,188.2,102.11676925]
[1739747846080,33.41184853,188.32,188.22,15.27336925]
[1739747846405,18.5823,188.35,188.22,15.27336925]
[1739747846609,13.41184853,188.34,188.21,15.27336925]
[1739747846809,8.32674945,188.33,188.21,15.27336925]
[1739747847190,8.32674945,188.33,188.22,15.27336925]
[1739747847386,5.3101,188.32,188.22,20.58596925]
[1739747847582,5.3101,188.32,188.21,15.27336925]
[1739747847786,5.3101,188.32,188.21,20.58646925]
[1739747848208,5.3101,188.32,188.2,81.53]
[1739747848209,31.99714853,188.32,188.2,81.53]
[1739747848507,31.99714853,188.32,188.2,86.8433]
[1739747849294,31.99714853,188.32,188.2,81.53]
[1739747850513,31.99714853,188.32,188.2,86.8433]
[1739747850701,31.99714853,188.32,188.2,102.11666925]
[1739747851223,25.3101,188.32,188.21,15.27336925]
[1739747851511,25.3101,188.32,188.2,102.11666925]
[1739747851889,25.3101,188.32,188.21,15.27336925]
[1739747852310,25.3101,188.32,188.2,102.11666925]
[1739747852519,13.41184853,188.31,188.2,86.8433]
[1739747853719,38.5853,188.32,188.21,15.27336925]
[1739747854092,8.32674945,188.34,188.23,35.27336925]
[1739747854292,8.32674945,188.34,188.21,0.79673177]
[1739747854293,5.3098,188.33,188.24,15.27336925]
[1739747854800,5.3098,188.33,188.23,35.27336925]
[1739747855293,5.3098,188.33,188.23,20.0]
[1739747855711,13.41184853,188.34,188.23,20.0]
[1739747856225,13.41184853,188.34,188.23,25.3125]
[1739747856713,13.41184853,188.34,188.23,5.3125]
[1739747856921,13.41184853,188.34,188.22,20.58616925]
[1739747857130,13.41184853,188.34,188.25,20.0]
[1739747858115,5.3098,188.33,188.25,20.0]
[1739747858710,5.3098,188.33,188.24,5.3122]
[1739747858921,5.3098,188.33,188.25,15.27336925]
[1739747859221,5.3098,188.33,188.24,20.58556925]
[1739747859921,21.60004945,188.35,188.24,20.58556925]
[1739747860123,5.3095,188.34,188.24,20.58556925]
[1739747860309,5.3095,188.34,188.25,15.27336925]
[1739747860819,5.3095,188.34,188.24,20.58556925]
[1739747862028,5.3092,188.35,188.24,20.58556925]
[1739747862206,18.5823,188.35,188.24,20.58556925]
[1739747863123,18.5823,188.35,188.24,5.3122]
[1739747863421,18.5823,188.35,188.23,22.24766925]
[1739747864327,18.5823,188.35,188.24,15.27336925]
[1739747864637,18.5823,188.35,188.24,40.58546925]
[1739747867141,18.5823,188.35,188.26,20.58516925]
[1739747867505,18.5823,188.35,188.26,5.3118]
[1739747869432,18.5823,188.35,188.25,5.312]
[1739747871635,5.3092,188.35,188.25,20.58536925]
[1739747872937,5.3092,188.35,188.25,102.08536925]
[1739747873139,5.3092,188.35,188.25,86.812]
[1739747873345,18.5823,188.35,188.25,86.812]
[1739747873945,18.5823,188.35,188.25,81.5]
[1739747874643,13.41184853,188.34,188.21,81.5]
[1739747874848,20.0,188.31,188.21,81.5]
[1739747875026,4.22,188.3,188.21,86.8131]
[1739747875339,20.0,188.31,188.21,86.813]
[1739747875544,20.0,188.31,188.21,102.08636925]
[1739747875745,13.41184853,188.34,188.21,102.08636925]
[1739747875972,5.3106,188.3,188.21,102.08636925]
[1739747876134,5.3106,188.3,188.21,86.813]
[1739747876342,18.5872,188.3,188.21,81.5]
[1739747877148,13.41184853,188.28,188.2,0.03]
[1739747878253,13.41184853,188.26,188.2,0.03]
[1739747878638,21.73859798,188.26,188.2,0.03]
[1739747880037,8.32674945,188.24,188.2,0.03]
[1739747882143,13.63904945,188.24,188.2,0.03]
[1739747883668,13.41184853,188.23,188.2,0.03]
[1739747883961,13.63904945,188.24,188.2,0.03]
[1739747884464,18.5932,188.24,188.2,0.03]
[1739747884664,5.3123,188.24,188.2,0.03]
[1739747885963,8.32674945,188.24,188.17,9.76913223]
[1739747886168,8.32674945,188.24,188.17,29.76913223]
[1739747886370,13.63904945,188.24,188.17,29.76913223]
[1739747887066,13.63904945,188.24,188.2,0.03]
[1739747887252,8.32674945,188.24,188.2,0.03]
[1739747887453,8.32674945,188.25,188.2,0.03]
[1739747888052,13.63884945,188.25,188.2,0.03]
[1739747889370,5.3121,188.25,188.2,0.03]
[1739747890065,13.2802,188.25,188.2,0.03]
[1739747891061,5.3748,188.26,188.2,0.03]
[1739747891977,8.32674945,188.24,188.2,0.03]
[1739747893062,8.32674945,188.24,188.21,15.25598537]
[1739747893374,8.32674945,188.24,188.23,15.25598537]
[1739747893593,8.32674945,188.24,188.22,20.0]
[1739747895453,0.063,188.26,188.22,20.0]
[1739747896172,0.063,188.26,188.2,15.28598537]
[1739747896955,0.063,188.26,188.2,0.03]
[1739747898081,0.063,188.26,188.2,20.59938537]
[1739747899081,0.063,188.26,188.2,15.28598537]
[1739747899883,0.063,188.26,188.2,0.03]
[1739747900878,0.063,188.26,188.2,81.53]
[1739747901986,1.5636,188.25,188.2,81.53]
[1739747902482,5.3123,188.24,188.2,81.53]
[1739747906087,8.32674945,188.25,188.2,81.53]
[1739747906392,13.63884945,188.25,188.2,81.53]
[1739747906589,5.3121,188.25,188.2,81.53]
[1739747907288,5.3121,188.25,188.2,0.03]
[1739747907593,18.5923,188.25,188.2,0.03]
[1739747908989,26.91904945,188.25,188.2,0.03]
[1739747910192,13.63884945,188.25,188.2,0.03]
[1739747913595,5.3126,188.23,188.2,0.03]
[1739747914391,8.32674945,188.24,188.2,0.03]
[1739747915099,13.63904945,188.25,188.2,0.03]
[1739747917900,8.32674945,188.25,188.2,91.29311619]
[1739747918103,13.70164945,188.26,188.2,91.29311619]
[1739747918802,13.70164945,188.26,188.2,81.53]
[1739747919492,13.70164945,188.26,188.2,91.29311619]
[1739747919703,13.70164945,188.26,188.2,96.60651619]
[1739747920001,13.70164945,188.26,188.2,91.29311619]
[1739747920297,13.70164945,188.26,188.2,81.53]
[1739747920482,5.3749,188.26,188.2,81.53]
[1739747922375,8.32674945,188.25,188.2,81.53]
[1739747923099,13.63884945,188.25,188.2,81.53]
[1739747923501,8.32674945,188.25,188.2,96.60641619]
[1739747923801,8.32674945,188.25,188.22,9.76311619]
[1739747924190,8.38974945,188.26,188.22,9.76311619]
[1739747924396,8.38974945,188.26,188.21,9.76311619]
[1739747924579,8.38974945,188.26,188.2,96.60641619]
[1739747924997,8.38974945,188.26,188.21,9.76311619]
[1739747925692,8.38974945,188.26,188.21,15.07611619]
[1739747925895,8.38974945,188.26,188.22,9.76311619]
[1739747926101,8.38974945,188.26,188.21,5.313]
[1739747926102,8.38974945,188.26,188.24,29.76311619]
[1739747926280,8.38974945,188.26,188.25,9.76311619]
[1739747926612,0.063,188.26,188.25,9.76311619]
[1739747927690,0.063,188.26,188.25,15.07511619]
[1739747930088,0.063,188.26,188.25,28.48696472]
[1739747931483,0.063,188.26,188.25,15.07511619]
[1739747932233,0.063,188.26,188.25,9.76311619]
[1739747932508,0.063,188.26,188.24,81.5]
[1739747935396,0.063,188.26,188.22,9.76311619]
[1739747935597,0.063,188.26,188.21,5.3131]
[1739747935909,0.063,188.26,188.24,9.76311619]
[1739747938204,0.063,188.26,188.23,9.76311619]
[1739747938386,0.063,188.26,188.23,81.5]
[1739747940696,0.063,188.26,188.23,91.26311619]
[1739747940898,0.063,188.26,188.24,9.76311619]
[1739747941306,0.063,188.26,188.25,9.76311619]
[1739747941818,0.063,188.26,188.25,91.26311619]
[1739747942189,0.063,188.26,188.25,104.67496472]
[1739747942405,8.32674945,188.32,188.31,9.76311619]
[1739747942604,8.32674945,188.32,188.31,91.26311619]
[1739747942907,0.063,188.35,188.31,91.26311619]
[1739747943125,0.063,188.35,188.33,9.76311619]
[1739747944007,0.063,188.35,188.32,9.76311619]
[1739747944519,0.063,188.35,188.31,81.5]
[1739747946125,0.063,188.35,188.26,9.76311619]
[1739747946312,6.2025,188.33,188.24,9.76311619]
[1739747946511,6.2025,188.33,188.23,81.5]
[1739747946717,13.41184853,188.32,188.23,0.03]
[1739747947827,5.3103,188.31,188.23,0.03]
[1739747949029,5.3103,188.31,188.23,15.27857218]
[1739747949907,5.3103,188.31,188.24,15.24857218]
[1739747950631,19.83924945,188.33,188.26,15.24857218]
[1739747950811,19.83924945,188.33,188.25,15.24857218]
[1739747951638,11.5125,188.33,188.25,15.24857218]
[1739747952240,11.5125,188.33,188.26,15.24857218]
[1739747952742,1.6372,188.34,188.28,15.24857218]
[1739747952948,5.3724,188.35,188.3,15.24857218]
[1739747953114,5.3724,188.35,188.29,15.24857218]
[1739747953818,0.063,188.35,188.29,15.24857218]
[1739747954435,0.063,188.35,188.28,96.74857218]
[1739747954641,0.063,188.35,188.28,81.5]
[1739747956252,0.063,188.35,188.25,15.24857218]
[1739747956459,0.063,188.35,188.23,96.77857218]
[1739747957131,8.32674945,188.34,188.23,96.77857218]
[1739747957327,5.3098,188.33,188.23,102.09107218]
[1739747957643,5.3098,188.33,188.26,15.24857218]
[1739747958032,8.32674945,188.34,188.28,15.24857218]
[1739747958227,8.32674945,188.34,188.28,96.74857218]
[1739747958434,13.63624945,188.34,188.28,81.5]
[1739747958626,8.32674945,188.34,188.28,81.5]
[1739747958831,13.63634945,188.34,188.28,81.5]
[1739747959139,5.3722,188.35,188.28,96.74857218]
[1739747959349,0.063,188.35,188.31,15.24857218]
[1739747959525,0.063,188.35,188.32,15.24857218]
[1739747960048,0.063,188.35,188.34,15.24857218]
[1739747962646,0.063,188.35,188.34,116.45232071]
[1739747962849,0.063,188.38,188.37,20.0]
[1739747963043,0.063,188.38,188.37,50.49714436]
[1739747963352,0.063,188.38,188.37,63.90899289]
[1739747963744,0.063,188.38,188.37,145.40899289]
[1739747965154,0.063,188.38,188.37,147.40899289]
[1739747965657,0.063,188.45,188.44,20.0]
[1739747965857,0.063,188.45,188.44,116.74857218]
[1739747966846,0.063,188.45,188.44,81.5]
[1739747967157,0.063,188.45,188.44,96.74857218]
[1739747967344,0.063,188.45,188.44,81.5]
[1739747970569,0.063,188.45,188.41,15.24857218]
[1739747970735,0.063,188.45,188.4,15.24857218]
[1739747970936,0.063,188.45,188.38,81.5]
[1739747971135,18.6355,188.45,188.38,81.5]
[1739747973658,13.3291,188.45,188.38,81.5]
[1739747974662,13.3291,188.45,188.38,96.74857218]
[1739747974864,0.063,188.45,188.39,15.24857218]
[1739747975051,0.063,188.45,188.38,96.74857218]
[1739747975256,0.063,188.45,188.38,81.5]
[1739747975862,0.063,188.45,188.38,96.74857218]
[1739747976165,0.063,188.45,188.38,81.5]
[1739747978154,0.063,188.45,188.38,96.74857218]
[1739747978954,0.063,188.45,188.38,81.5]
[1739747982374,0.063,188.45,188.38,96.74857218]
[1739747983356,0.063,188.45,188.38,96.77857218]
[1739747985182,0.063,188.45,188.38,81.53]
[1739747985693,0.063,188.45,188.38,0.03]
[1739747987459,13.41184853,188.44,188.38,0.03]
[1739747987662,20.0,188.41,188.38,0.03]
[1739747987966,1.5359,188.4,188.38,0.03]
[1739747988165,1.5359,188.4,188.33,81.5]
[1739747988166,7.889,188.4,188.33,81.5]
[1739747988352,7.889,188.4,188.28,96.74857218]
[1739747988665,7.889,188.4,188.28,81.5]
[1739747988863,7.889,188.4,188.28,96.74857218]
[1739747989098,7.889,188.4,188.29,15.24857218]
[1739747989390,18.5784,188.39,188.29,15.24857218]
[1739747991390,18.5784,188.39,188.31,15.24857218]
[1739747991590,18.5784,188.39,188.3,15.24857218]
[1739747994667,18.5784,188.39,188.3,15.27857218]
[1739747996101,18.5784,188.39,188.3,0.03]
[1739747996879,18.5784,188.39,188.3,15.27857218]
[1739747997800,18.5784,188.39,188.3,96.77857218]
[1739747998602,18.5784,188.39,188.3,91.28079676]
[1739747999308,18.5784,188.39,188.31,9.75079676]
[1739748000306,18.5784,188.39,188.3,81.53]
[1739748001200,18.5784,188.39,188.3,91.28079676]
[1739748002980,18.5784,188.39,188.3,81.53]
[1739748004422,18.5784,188.39,188.3,91.28079676]
[1739748004989,18.5784,188.39,188.31,9.75079676]
[1739748005403,5.3081,188.39,188.33,9.75079676]
[1739748005625,5.3081,188.39,188.33,91.25079676]
[1739748006427,5.3078,188.4,188.33,91.25079676]
[1739748006813,0.063,188.39,188.33,91.25079676]
[1739748007618,0.063,188.39,188.33,81.5]
[1739748009729,1.5773,188.38,188.33,81.5]
[1739748011027,18.5804,188.37,188.33,81.5]
[1739748011243,4.2,188.36,188.33,81.5]
[1739748012350,4.2,188.36,188.33,63.04377901]
[1739748012515,18.5804,188.37,188.33,63.04377901]
[1739748012716,18.5804,188.37,188.3,63.07377901]
[1739748014230,45.1239,188.37,188.3,63.07377901]
[1739748014829,18.5804,188.37,188.3,63.07377901]
[1739748015223,5.3087,188.37,188.31,15.24105291]
[1739748015755,5.3087,188.37,188.3,78.31483192]
[1739748016659,5.3087,188.37,188.3,83.62543192]
[1739748017141,0.063,188.39,188.3,83.62543192]
[1739748017864,0.063,188.39,188.31,15.24105291]
[1739748018163,0.063,188.39,188.34,15.24105291]
[1739748019250,0.063,188.39,188.33,35.24105291]
[1739748019427,0.063,188.39,188.34,20.0]
[1739748020047,0.063,188.39,188.34,35.24105291]
[1739748021556,0.063,188.39,188.34,103.59423192]
[1739748022754,0.063,188.39,188.35,15.24105291]
[1739748022933,0.063,188.39,188.36,15.24105291]
[1739748023132,0.063,188.39,188.38,20.0]
[1739748024452,0.063,188.39,188.37,35.24105291]
[1739748024637,0.063,188.39,188.38,15.24105291]
[1739748024947,0.063,188.39,188.38,78.28483192]
[1739748025353,0.063,188.39,188.38,63.04377901]
[1739748026351,0.063,188.39,188.38,78.28483192]
[1739748026760,0.063,188.39,188.38,83.59323192]
[1739748027255,0.063,188.39,188.38,68.35217901]
[1739748027753,0.063,188.39,188.38,83.59323192]
[1739748027962,0.063,188.39,188.38,68.35217901]
[1739748029558,0.063,188.39,188.38,83.59323192]
[1739748030164,0.063,188.39,188.38,84.38923078]
[1739748030340,0.063,188.39,188.38,78.28483192]
[1739748030537,0.063,188.39,188.38,63.04377901]
[1739748031033,0.063,188.39,188.38,68.35217901]
[1739748031250,0.063,188.39,188.38,78.09526263]
[1739748031445,0.063,188.39,188.38,92.30309995]
[1739748034751,0.0001,188.39,188.38,92.30309995]
[1739748035171,0.0001,188.39,188.38,94.30309995]
[1739748035846,0.063,188.53,188.47,21.0]
[1739748036049,0.063,188.53,188.52,9.74308362]
[1739748036242,0.063,188.53,188.52,72.78686263]
[1739748036444,0.063,188.53,188.52,78.09126263]
[1739748038561,0.063,188.53,188.52,78.24129326]
[1739748041070,0.063,188.53,188.52,83.54569326]
[1739748041252,0.063,188.53,188.52,84.34107685]
[1739748041449,0.063,188.53,188.52,79.03667685]
[1739748041948,0.063,188.53,188.52,78.24129326]
[1739748042151,0.063,188.53,188.52,83.54569326]
[1739748042464,0.063,188.57,188.56,20.0]
[1739748042652,0.03,188.6,188.59,20.0]
[1739748042855,0.03,188.6,188.59,35.99259358]
[1739748043160,0.03,188.6,188.59,35.19751425]
[1739748044360,0.03,188.6,188.57,15.19751425]
[1739748044559,0.03,188.6,188.56,78.24129326]
[1739748044953,0.03,188.6,188.56,63.04377901]
[1739748047248,1.6735,188.6,188.56,63.04377901]
[1739748047453,1.6735,188.6,188.53,15.19751425]
[1739748048270,1.6735,188.6,188.54,35.19751425]
[1739748048473,1.6735,188.6,188.55,35.19751425]
[1739748049665,1.6735,188.6,188.54,40.50131425]
[1739748050473,1.6735,188.6,188.55,15.19751425]
[1739748050771,1.6735,188.6,188.56,15.19751425]
[1739748051862,1.6735,188.6,188.56,20.50081425]
[1739748052055,0.03,188.6,188.56,20.50081425]
[1739748055271,0.03,188.6,188.56,83.54459326]
[1739748055777,0.03,188.6,188.56,83.60759326]
[1739748056149,0.03,188.6,188.57,20.50041425]